fUST/lending_fUST_20250407
["ID","MTS","AMOUNT","RATE_DAILY","PERIOD"]
[357296770,1743994242224,-500.0,0.00041095,7]
[357296771,1743994242234,-500.0,0.00041095,7]
[357296772,1743994242244,-500.0,0.00041095,7]
[357296773,1743994242254,-500.0,0.00041095,7]
[357296775,1743994242264,-500.0,0.00041095,7]
[357296777,1743994242274,-500.0,0.00041095,7]
[357296779,1743994242284,-500.0,0.00041095,7]
[357296780,1743994242294,-500.0,0.00041095,7]
[357296781,1743994242305,-1126.31,0.00041095,7]
[357296782,1743994242314,-500.0,0.00041095,7]
[357296783,1743994242325,-500.0,0.00041095,7]
[357296784,1743994242335,-500.0,0.00041095,7]
[357296785,1743994242344,-1298.39,0.00041095,7]
[357296786,1743994242354,-500.0,0.00041095,7]
[357296787,1743994242364,-507.9636714,0.00041095,7]
[357296788,1743994242374,-1025.11,0.00041095,7]
[357296790,1743994242384,-519.12423877,0.00041095,7]
[357296791,1743994242393,-500.0,0.00041095,7]
[357296792,1743994242403,-1000.0,0.00041095,7]
[357296793,1743994242413,-500.0,0.00041095,7]
[357296794,1743994242423,-612.7333827,0.00041095,7]
[357296796,1743994242433,-660.68,0.00041095,7]
[357296798,1743994242442,-500.0,0.00041095,7]
[357296799,1743994242451,-1171.85,0.00041095,7]
[357296800,1743994242460,-725.03,0.00041095,7]
[357296801,1743994242470,-598.26,0.00041095,7]
[357296802,1743994242479,-500.0,0.00041095,7]
[357296803,1743994242490,-2328.26,0.00041095,7]
[357296804,1743994242499,-500.0,0.00041095,7]
[357296805,1743994242508,-500.0,0.00041095,7]
[357296806,1743994242517,-527.77,0.00041095,7]
[357296807,1743994242526,-500.0,0.00041095,7]
[357296808,1743994242536,-500.0,0.00041095,7]
[357296809,1743994242545,-500.0,0.00041095,7]
[357296810,1743994242555,-510.87636415,0.00041095,7]
[357296811,1743994242566,-500.0,0.00041095,7]
[357296812,1743994242575,-500.0,0.00041095,7]
[357296813,1743994242584,-500.0,0.00041095,7]
[357296814,1743994242593,-1000.0,0.00041095,7]
[357296815,1743994242602,-502.24,0.00041095,7]
[357296816,1743994242611,-500.0,0.00041095,7]
[357296817,1743994242620,-500.0,0.00041095,7]
[357296818,1743994242629,-500.0,0.00041095,7]
[357296819,1743994242638,-220.58755578,0.00041095,7]
[357296820,1743994242648,-500.0,0.00041095,7]
[357296821,1743994242657,-525.14705154,0.00041095,7]
[357296822,1743994242669,-500.0,0.00041095,7]
[357296823,1743994242678,-509.72868643,0.00041095,7]
[357296824,1743994242688,-500.0,0.00041095,7]
[357296825,1743994242697,-500.0,0.00041095,7]
[357296826,1743994242708,-500.0,0.00041095,7]
[357296827,1743994242717,-500.0,0.00041095,7]
[357296828,1743994242726,-500.0,0.00041095,7]
[357296829,1743994242736,-994.99,0.00041095,7]
[357296830,1743994242745,-500.0,0.00041095,7]
[357296832,1743994242755,-500.0,0.00041095,7]
[357296833,1743994242764,-506.59,0.00041095,7]
[357296835,1743994242775,-299.87989398,0.00041095,7]
[357296836,1743994242786,-500.0,0.00041095,7]
[357296837,1743994242797,-500.0,0.00041095,7]
[357296838,1743994242808,-500.0,0.00041095,7]
[357296839,1743994242819,-569.18,0.00041095,7]
[357296840,1743994242830,-500.0,0.00041095,7]
[357296841,1743994242841,-500.0,0.00041095,7]
[357296842,1743994242852,-591.00043021,0.00041095,7]
[357296843,1743994242862,-526.01,0.00041095,7]
[357296844,1743994242871,-500.0,0.00041095,7]
[357296845,1743994242882,-500.0,0.00041095,7]
[357296846,1743994242892,-500.0,0.00041095,7]
[357296847,1743994242902,-500.0,0.00041095,7]
[357296848,1743994242913,-500.0,0.00041095,3]
[357296849,1743994242926,-500.0,0.00041095,7]
[357296850,1743994242938,-2655.94,0.00041095,7]
[357296851,1743994242948,-500.0,0.00041095,7]
[357296852,1743994242958,-500.0,0.00041095,7]
[357296853,1743994242967,-500.0,0.00041095,7]
[357296854,1743994242978,-500.0,0.00041095,7]
[357296855,1743994242988,-500.0,0.00041095,7]
[357296856,1743994242997,-734.65,0.00041095,7]
[357296857,1743994243007,-500.0,0.00041095,7]
[357296858,1743994243017,-851.87,0.00041095,7]
[357296859,1743994243028,-3128.66,0.00041095,7]
[357296860,1743994243038,-1683.85,0.00041095,7]
[357296861,1743994243047,-1228.41,0.00041095,7]
[357296862,1743994243058,-565.14,0.00041095,7]
[357296863,1743994243067,-1392.74,0.00041095,7]
[357296864,1743994243077,-500.0,0.00041095,7]
[357296865,1743994243087,-577.66,0.00041095,7]
[357296866,1743994243140,-500.0,0.00041095,7]
[357296867,1743994243149,-500.0,0.00041095,7]
[357296868,1743994243158,-551.93,0.00041095,7]
[357296869,1743994243169,-3168.56,0.00041095,7]
[357296870,1743994243178,-500.0,0.00041095,7]
[357296871,1743994243188,-1059.62,0.00041095,7]
[357296872,1743994243198,-460.10899653,0.00041095,7]
[357296874,1743994243207,-1610.92,0.00041095,7]
[357296875,1743994243217,-500.0,0.00041095,7]
[357296877,1743994243226,-500.0,0.00041095,7]
[357296878,1743994243236,-1951.93,0.00041095,7]
[357296879,1743994243245,-586.99,0.00041095,7]
[357296880,1743994243254,-500.0,0.00041095,7]
[357296881,1743994243264,-500.0,0.00041095,7]
[357296882,1743994243273,-500.0,0.00041095,7]
[357296883,1743994243283,-649.58,0.00041095,7]
[357296884,1743994243292,-500.0,0.00041095,7]
[357296885,1743994243301,-500.0,0.00041095,7]
[357296886,1743994243311,-500.0,0.00041095,7]
[357296887,1743994243320,-569.75,0.00041095,7]
[357296888,1743994243330,-500.0,0.00041095,7]
[357296889,1743994243339,-1667.91,0.00041095,7]
[357296890,1743994243348,-500.0,0.00041095,7]
[357296891,1743994243358,-505.11200527,0.00041095,7]
[357296892,1743994243367,-811.28,0.00041095,7]
[357296893,1743994243376,-500.0,0.00041095,7]
[357296894,1743994243385,-1176.05,0.00041095,7]
[357296895,1743994243395,-500.0,0.00041095,7]
[357296896,1743994243404,-500.0,0.00041095,7]
[357296897,1743994243414,-500.0,0.00041095,7]
[357296898,1743994243424,-500.0,0.00041095,7]
[357296899,1743994243433,-791.6,0.00041095,7]
[357296900,1743994243443,-500.0,0.00041095,7]
[357296901,1743994243457,-500.0,0.00041095,7]
[357296902,1743994243469,-500.0,0.00041095,7]
[357296903,1743994243478,-500.0,0.00041095,7]
[357296904,1743994243489,-663.01,0.00041095,7]
[357296905,1743994243500,-7760.75,0.00041095,7]
[357296906,1743994243510,-500.0,0.00041095,7]
[357296907,1743994243520,-200.0,0.00041095,7]
[357296908,1743994243531,-500.0,0.00041095,7]
[357296909,1743994243541,-809.99,0.00041095,7]
[357296910,1743994243551,-500.0,0.00041095,7]
[357296911,1743994243561,-1807.59,0.00041095,7]
[357296912,1743994243571,-500.0,0.00041095,7]
[357296913,1743994243580,-579.2,0.00041095,7]
[357296914,1743994243590,-500.0,0.00041095,7]
[357296915,1743994243600,-500.0,0.00041095,7]
[357296916,1743994243609,-500.0,0.00041095,7]
[357296917,1743994243619,-570.14340524,0.00041095,7]
[357296918,1743994243628,-589.42,0.00041095,7]
[357296919,1743994243637,-500.0,0.00041095,7]
[357296920,1743994243646,-551.75,0.00041095,7]
[357296921,1743994243656,-500.0,0.00041095,7]
[357296922,1743994243668,-4275.37,0.00041095,7]
[357296923,1743994243678,-500.0,0.00041095,7]
[357296924,1743994243688,-500.0,0.00041095,7]
[357296925,1743994243698,-500.0,0.00041095,7]
[357296926,1743994243707,-500.0,0.00041095,7]
[357296927,1743994243717,-500.0,0.00041095,7]
[357296928,1743994243727,-500.0,0.00041095,7]
[357296929,1743994243736,-500.0,0.00041095,7]
[357296930,1743994243745,-21363.66,0.00041095,7]
[357296931,1743994243755,-538.21,0.00041095,7]
[357296932,1743994243765,-500.0,0.00041095,7]
[357296933,1743994243775,-500.0,0.00041095,7]
[357296934,1743994243784,-615.52851395,0.00041095,7]
[357296935,1743994243794,-559.01,0.00041095,7]
[357296936,1743994243804,-500.0,0.00041095,7]
[357296937,1743994243813,-500.0,0.00041095,7]
[357296938,1743994243823,-500.0,0.00041095,7]
[357296939,1743994243832,-500.0,0.00041095,7]
[357296940,1743994243842,-500.0,0.00041095,7]
[357296941,1743994243852,-1210.35,0.00041095,7]
[357296942,1743994243862,-500.0,0.00041095,7]
[357296943,1743994243872,-1869.63,0.00041095,7]
[357296944,1743994243882,-500.0,0.00041095,7]
[357296945,1743994243891,-500.0,0.00041095,7]
[357296946,1743994243900,-813.0,0.00041095,7]
[357296947,1743994243910,-500.0,0.00041095,7]
[357296948,1743994243922,-500.0,0.00041095,7]
[357296949,1743994243932,-500.0,0.00041095,7]
[357296950,1743994243941,-232.4848222,0.00041095,7]
[357296951,1743994243950,-500.0,0.00041095,7]
[357296952,1743994243959,-500.0,0.00041095,7]
[357296953,1743994243969,-500.0,0.00041095,7]
[357296954,1743994243978,-1545.75,0.00041095,7]
[357296955,1743994243987,-500.0,0.00041095,7]
[357296956,1743994243997,-551.7358073,0.00041095,7]
[357296957,1743994244006,-500.0,0.00041095,7]
[357296958,1743994244015,-7122.02,0.00041095,7]
[357296959,1743994244025,-500.0,0.00041095,7]
[357296960,1743994244034,-500.0,0.00041095,7]
[357296961,1743994244043,-500.0,0.00041095,7]
[357296962,1743994244053,-500.0,0.00041095,7]
[357296963,1743994244062,-586.66,0.00041095,7]
[357296964,1743994244072,-547.12351763,0.00041095,7]
[357296965,1743994244084,-500.0,0.00041095,7]
[357296966,1743994244094,-2985.37,0.00041095,2]
[357296967,1743994244103,-500.0,0.00041095,7]
[357296968,1743994244112,-500.0,0.00041095,7]
[357296969,1743994244122,-500.0,0.00041095,7]
[357296970,1743994244131,-500.0,0.00041095,7]
[357296971,1743994244141,-500.0,0.00041095,7]
[357296972,1743994244151,-7344.48,0.00041095,7]
[357296973,1743994244161,-500.0,0.00041095,7]
[357296974,1743994244174,-500.0,0.00041095,7]
[357296975,1743994244183,-500.0,0.00041095,7]
[357296976,1743994244193,-500.0,0.00041095,7]
[357296977,1743994244203,-503.53953366,0.00041095,7]
[357296978,1743994244212,-500.0,0.00041095,7]
[357296979,1743994244221,-500.0,0.00041095,7]
[357296980,1743994244230,-2000.0,0.00041095,30]
[357296981,1743994244240,-978.94,0.00041095,7]
[357296982,1743994244249,-500.0,0.00041095,7]
[357296983,1743994244259,-500.0,0.00041095,7]
[357296984,1743994244268,-500.0,0.00041095,7]
[357296985,1743994244278,-500.0,0.00041095,7]
[357296986,1743994244287,-500.0,0.00041095,7]
[357296987,1743994244297,-500.0,0.00041095,7]
[357296988,1743994244306,-500.0,0.00041095,7]
[357296989,1743994244315,-500.0,0.00041095,7]
[357296990,1743994244324,-500.0,0.00041095,7]
[357296991,1743994244334,-500.0,0.00041095,7]
[357296992,1743994244343,-500.0,0.00041095,7]
[357296993,1743994244352,-1340.92,0.00041095,7]
[357296994,1743994244361,-500.0,0.00041095,7]
[357296995,1743994244371,-851.01,0.00041095,7]
[357296996,1743994244381,-500.0,0.00041095,7]
[357296997,1743994244390,-500.0,0.00041095,7]
[357296998,1743994244400,-500.0,0.00041095,7]
[357296999,1743994244409,-995.34,0.00041095,7]
[357297000,1743994244420,-578.66,0.00041095,7]
[357297001,1743994244430,-597.46,0.00041095,7]
[357297002,1743994244439,-500.0,0.00041095,7]
[357297003,1743994244448,-500.0,0.00041095,7]
[357297004,1743994244457,-500.0,0.00041095,7]
[357297005,1743994244467,-500.0,0.00041095,7]
[357297006,1743994244477,-620.17,0.00041095,7]
[357297007,1743994244489,-500.0,0.00041095,7]
[357297008,1743994244500,-500.0,0.00041095,7]
[357297009,1743994244510,-6700.27,0.00041095,7]
[357297010,1743994244519,-2769.51,0.00041095,7]
[357297011,1743994244529,-500.0,0.00041095,7]
[357297012,1743994244539,-2769.51,0.00041095,7]
[357297013,1743994244548,-2769.51,0.00041095,7]
[357297014,1743994244557,-2769.51,0.00041095,7]
[357297015,1743994244569,-500.0,0.00041095,7]
[357297016,1743994244578,-2769.51,0.00041095,7]
[357297017,1743994244588,-2769.51,0.00041095,7]
[357297018,1743994244597,-500.0,0.00041095,7]
[357297019,1743994244607,-2769.51,0.00041095,7]
[357297020,1743994244616,-2769.51,0.00041095,7]
[357297021,1743994244626,-2769.51,0.00041095,7]
[357297022,1743994244635,-2769.51,0.00041095,7]
[357297023,1743994244644,-2769.51,0.00041095,7]
[357297024,1743994244654,-2769.51,0.00041095,7]
[357297025,1743994244665,-500.0,0.00041095,7]
[357297026,1743994244674,-2769.51,0.00041095,7]
[357297027,1743994244684,-2769.51,0.00041095,7]
[357297028,1743994244694,-2769.51,0.00041095,7]
[357297029,1743994244704,-570.05,0.00041095,7]
[357297030,1743994244714,-2769.51,0.00041095,7]
[357297031,1743994244723,-2769.51,0.00041095,7]
[357297032,1743994244733,-2769.51,0.00041095,7]
[357297033,1743994244742,-2769.51,0.00041095,7]
[357297034,1743994244752,-884.06576543,0.00041095,7]
[357297035,1743994244793,-480.180004,0.00041095,7]
[357297036,1743994245420,-528.5551109,0.00035616,7]
[357297037,1743994245430,-176.0,0.00036,2]
[357297038,1743994245440,-176.0,0.00037397,2]
[357297039,1743994245450,-178.0,0.00039267,14]
[357297040,1743994245460,-151.0,0.00040999,2]
[357297041,1743994245471,-151.0,0.00040999,2]
[357297042,1743994245481,-151.0,0.00040999,2]
[357297043,1743994245495,-151.0,0.00040999,2]
[357297044,1743994245505,-151.0,0.00040999,2]
[357297045,1743994245514,-151.0,0.00040999,2]
[357297046,1743994245524,-151.0,0.00040999,2]
[357297047,1743994245535,-151.0,0.00040999,2]
[357297048,1743994245545,-151.0,0.00040999,2]
[357297049,1743994245555,-151.0,0.00040999,2]
[357297050,1743994245565,-151.0,0.00040999,2]
[357297051,1743994245575,-657.98423057,0.00041095,7]
[357297053,1743994245585,-2769.51,0.00041095,7]
[357297055,1743994245595,-2769.51,0.00041095,7]
[357297056,1743994245605,-2769.51,0.00041095,7]
[357297057,1743994245614,-2769.51,0.00041095,7]
[357297058,1743994245624,-2769.71230944,0.00041095,7]
[357297059,1743994245634,-702.99,0.00041095,7]
[357297060,1743994245644,-533.02,0.00041095,7]
[357297061,1743994245654,-500.0,0.00041095,7]
[357297062,1743994245664,-5522.93018564,0.00041095,7]
[357297063,1743994245678,-2058.52981436,0.00041095,7]
[357297064,1743994245688,-500.0,0.00041095,7]
[357297065,1743994245698,-500.0,0.00041095,7]
[357297066,1743994245708,-500.0,0.00041095,7]
[357297067,1743994245717,-500.0,0.00041095,7]
[357297068,1743994245728,-9250.44,0.00041095,7]
[357297069,1743994245738,-465.75241465,0.00041095,7]
[357297070,1743994245749,-500.0,0.00041095,7]
[357297071,1743994245758,-1093.22,0.00041095,7]
[357297073,1743994245767,-500.0,0.00041095,7]
[357297075,1743994245777,-2297.84,0.00041095,7]
[357297076,1743994245786,-500.0,0.00041095,7]
[357297077,1743994245796,-597.58662016,0.00041095,7]
[357297078,1743994245806,-500.0,0.00041095,7]
[357297079,1743994245815,-500.0,0.00041095,7]
[357297081,1743994245825,-500.0,0.00041095,7]
[357297083,1743994245834,-500.0,0.00041095,7]
[357297085,1743994245844,-1655.59,0.00041095,7]
[357297086,1743994245854,-2082.6,0.00041095,7]
[357297087,1743994245864,-500.0,0.00041095,7]
[357297088,1743994245873,-689.81,0.00041095,7]
[357297089,1743994245883,-467.79753653,0.00041095,7]
[357297090,1743994245893,-500.0,0.00041095,7]
[357297091,1743994245903,-5222.49,0.00041095,7]
[357297092,1743994245913,-500.0,0.00041095,7]
[357297093,1743994245923,-500.0,0.00041095,7]
[357297094,1743994245933,-534.87092604,0.00041095,7]
[357297095,1743994245943,-617.87073326,0.00041095,7]
[357297096,1743994245953,-2215.21,0.00041095,7]
[357297097,1743994245963,-503.93,0.00041095,7]
[357297098,1743994245972,-500.0,0.00041095,7]
[357297099,1743994245982,-500.0,0.00041095,7]
[357297100,1743994245991,-500.0,0.00041095,7]
[357297101,1743994246001,-500.0,0.00041095,7]
[357297102,1743994246011,-746.461955,0.00041095,7]
[357297103,1743994246296,-4181.878045,0.00041095,7]
[357297104,1743994246306,-500.0,0.00041095,7]
[357297105,1743994246316,-500.0,0.00041095,7]
[357297106,1743994246326,-2257.1,0.00041095,7]
[357297107,1743994246336,-1132.82,0.00041095,7]
[357297108,1743994246346,-3000.85,0.00041095,7]
[357297109,1743994246355,-403.20681667,0.00041095,7]
[357297110,1743994246365,-570.2,0.00041095,7]
[357297111,1743994246375,-500.0,0.00041095,7]
[357297112,1743994246384,-1179.02,0.00041095,7]
[357297113,1743994246394,-500.0,0.00041095,7]
[357297114,1743994246404,-522.85589324,0.00041095,7]
[357297115,1743994246414,-1157.73,0.00041095,7]
[357297116,1743994246424,-500.0,0.00041095,7]
[357297117,1743994246434,-500.0,0.00041095,7]
[357297118,1743994246444,-500.0,0.00041095,7]
[357297119,1743994246455,-500.0,0.00041095,7]
[357297120,1743994246465,-500.0,0.00041095,7]
[357297121,1743994246475,-747.88,0.00041095,7]
[357297122,1743994246485,-747.88,0.00041095,7]
[357297123,1743994246497,-747.88,0.00041095,7]
[357297124,1743994246507,-500.0,0.00041095,7]
[357297125,1743994246517,-747.88,0.00041095,7]
[357297126,1743994246526,-747.88,0.00041095,7]
[357297127,1743994246538,-747.88,0.00041095,7]
[357297128,1743994246548,-747.88,0.00041095,7]
[357297129,1743994246557,-473.66122796,0.00041095,7]
[357297130,1743994246572,-274.21877204,0.00041095,7]
[357297131,1743994246581,-264.63817994,0.00041095,7]
[357297139,1743994660737,-340.83593074,0.0002327,2]
[357297140,1743994764528,169.801801,0.00013699,2]
[357297176,1743995247135,-500.0,0.00027397,5]
[357297177,1743995247160,-200.0,0.00028,120]
[357297178,1743995247181,-1000.35268559,0.00028,2]
[357297179,1743995247204,-291.62106274,0.00029889,2]
[357297181,1743995247225,-233.3357857,0.000299,2]
[357297182,1743995247249,-300.71698216,0.000299,8]
[357297183,1743995247271,-300.0,0.00029972,2]
[357297184,1743995247292,-500.0,0.00029973,5]
[357297185,1743995247312,-500.0,0.00029973,2]
[357297186,1743995247334,-5149.24604551,0.0002998,2]
[357297192,1743995254134,-226.35331414,0.0002998,2]
[357297193,1743995358667,-159.16406926,0.000212,2]
[357297194,1743995365097,-831.25570541,0.000212,2]
[357297218,1743995432323,-38.58022533,0.000212,2]
[357297219,1743995432333,-4336.05862525,0.000252,2]
[357297220,1743995432344,-1509.90237004,0.000252,2]
[357297230,1743995437819,-3046.57895608,0.000252,2]
[357297233,1743995437831,-1107.46004863,0.000252,2]
[357297235,1743995437840,-500.0,0.00025482,2]
[357297236,1743995437850,-290.69308289,0.000259,6]
[357297237,1743995437859,-197.99441272,0.00026043,2]
[357297242,1743995438605,-302.00558728,0.00026043,2]
[357297243,1743995438615,-500.0,0.00026656,2]
[357297244,1743995438625,-195.24691958,0.00026659,6]
[357297252,1743995440179,-95.44616307,0.00026659,6]
[357297253,1743995440189,-500.0,0.00027204,2]
[357297254,1743995440199,-290.69308265,0.00027417,7]
[357297255,1743995440208,-290.69308265,0.00028176,7]
[357297256,1743995440218,-500.0,0.000283,2]
[357297257,1743995440228,-226.67425177,0.00028713,2]
[357297258,1743995440358,-0.00833732,0.00028713,2]
[357297281,1743995446082,-273.31741091,0.00028713,2]
[357297282,1743995446092,-290.69308265,0.00028934,8]
[357297283,1743995446101,-290.69308265,0.00029693,8]
[357297284,1743995446111,-255.16842988,0.00029889,2]
[357297285,1743995446121,-212.41033901,0.00029979,2]
[357297286,1743995446131,-500.0,0.00029979,2]
[357297287,1743995446141,-500.0,0.00029979,2]
[357297288,1743995446151,-206.6181106,0.00029979,2]
[357297289,1743995446160,-3729.45691971,0.0002998,2]
[357297291,1743995446193,-1368.71753193,0.0002998,2]
[357297317,1743995783279,-7026.0,0.00025,90]
[357297318,1743995783305,-500.0,0.0002552,2]
[357297319,1743995783330,-500.0,0.00025576,2]
[357297320,1743995783356,-274.49508274,0.000259,6]
[357297321,1743995783383,-274.49508257,0.00026659,6]
[357297322,1743995783408,-1225.00983469,0.00027257,2]
[357297323,1743995789658,-349.50084211,0.00027257,2]
[357297324,1743995789709,-500.0,0.00027397,5]
[357297325,1743995789763,-274.49508257,0.00027417,7]
[357297326,1743995789813,-500.0,0.00027602,2]
[357297327,1743995789864,-274.49508257,0.00028176,7]
[357297328,1743995789913,-274.49508257,0.00028934,8]
[357297329,1743995789949,-500.0,0.000294,2]
[357297330,1743995789974,-500.0,0.0002959,2]
[357297331,1743995790001,-274.49508257,0.00029693,8]
[357297332,1743995790034,-154.45692156,0.00029972,2]
[357297333,1743995790060,-200.0,0.00029972,2]
[357297334,1743995790088,-631.85222687,0.00029979,2]
[357297335,1743995790113,-500.0,0.00029979,2]
[357297336,1743995790140,-500.0,0.00029979,2]
[357297337,1743995790166,-212.41033901,0.00029979,2]
[357297338,1743995790193,-206.6181106,0.00029979,2]
[357297339,1743995790218,-5033.03053517,0.0002998,3]
[357297340,1743995790244,-39114.1506944,0.0002998,3]
[357297341,1743995790854,-38573.72750505,0.0002998,3]
[357297342,1743995790880,-11426.27249495,0.0002998,2]
[357297414,1743996504081,-238.305508,0.000221,2]
[357297417,1743996523826,-155.0,0.00022,2]
[357297419,1743996554179,-1960.0,0.00022,2]
[357297421,1743996573151,-89.81896244,0.00022,2]
[357297422,1743996573175,-52.25934797,0.000221,2]
[357297423,1743996573198,-246.25224656,0.00023,2]
[357297424,1743996573224,-500.0,0.00023756,2]
[357297425,1743996573249,-782.83879145,0.000249,2]
[357297426,1743996573272,-1877.78745542,0.00025,2]
[357297459,1743996632200,-1167.09604684,0.00025,2]
[357297460,1743996632213,-2959.17065887,0.00025,2]
[357297461,1743996632223,-500.0,0.00025068,2]
[357297462,1743996632233,-236.23966429,0.000259,6]
[357297463,1743996632243,-236.23966419,0.00026624,6]
[357297464,1743996632254,-3649.96929973,0.00027,2]
[357297465,1743996632264,-338.82113058,0.00027,2]
[357297466,1743996632273,-236.23966419,0.00027348,7]
[357297467,1743996632283,-2415.14056611,0.000275,2]
[357297468,1743996632589,-42482.92759707,0.000275,2]
[357297469,1743996632603,-453.32166818,0.00027972,2]
[357297470,1743996632614,-236.23966419,0.00028072,7]
[357297471,1743996632626,-151.84819298,0.0002858,2]
[357297472,1743996632637,-500.0,0.00028617,2]
[357297473,1743996632650,-236.23966419,0.00028797,8]
[357297474,1743996632664,-238.428872,0.00028935,2]
[357297475,1743996632675,-500.0,0.00029375,5]
[357297476,1743996632687,-236.23966419,0.00029521,8]
[357297477,1743996632700,-156.46,0.00029865,2]
[357297478,1743996632712,-186.66862856,0.0002989,2]
[357297479,1743996632726,-500.0,0.00029973,5]
[357297480,1743996632739,-512.31107887,0.00029973,5]
[357297481,1743996632749,-500.0,0.00029973,5]
[357297482,1743996632758,-500.0,0.00029973,5]
[357297483,1743996632768,-500.0,0.00029973,2]
[357297484,1743996632778,-500.0,0.00029973,5]
[357297485,1743996632789,-502.33514787,0.00029973,5]
[357297486,1743996632801,-500.0,0.00029979,2]
[357297487,1743996632815,-160.0,0.0002998,3]
[357297488,1743996632827,-677.08333333,0.0002998,3]
[357297489,1743996632838,-419.36665037,0.0002998,3]
[357297490,1743996632849,-12527.9349248,0.0002998,3]
[357297491,1743996632859,-160.0,0.0002998,3]
[357297492,1743996632871,-2516.51526759,0.0002998,3]
[357297493,1743996632882,-2329.37425682,0.0002998,3]
[357297494,1743996632907,-27050.8855764,0.0002998,3]
[357297495,1743996632920,-957.92786579,0.0002998,3]
[357297510,1743996638105,-442.29655881,0.00029979,2]
[357297511,1743996638121,-8505.75140071,0.0002998,3]
[357297512,1743996638134,-81976.73895548,0.0002998,2]
[357297536,1743996640589,-713.67335722,0.0002998,2]
[357297538,1743996640602,-177.57516581,0.0002998,2]
[357297540,1743996640613,-1012.25805711,0.0002999,2]
[357297614,1743996643356,-4243.33298056,0.0002999,2]
[357297615,1743996643472,-1322.87761158,0.0002999,2]
[357297631,1743996643760,-14.00079583,0.0002999,2]
[357297640,1743996646312,-6258.35737541,0.0002999,2]
[357297728,1743997629118,-1033.47086294,0.000233,2]
[357297729,1743997629140,-1115.39546545,0.00023505,10]
[357297731,1743997636133,-157.57515677,0.00023505,10]
[357297734,1743997639093,-185.77686965,0.00023505,10]
[357297735,1743997639117,-59.71055325,0.00023742,2]
[357297742,1743997644840,-440.28944675,0.00023742,2]
[357297743,1743997644867,-155.77,0.000266,31]
[357297744,1743997644891,-249.44121464,0.000269,7]
[357297745,1743997644914,-500.0,0.00027397,5]
[357297746,1743997644936,-249.44121447,0.0002759,7]
[357297747,1743997644958,-480.14124478,0.0002764,2]
[357297785,1743997837897,-1073.36140284,0.00024953,10]
[357297787,1743997837954,-374.05366051,0.00024953,10]
[357297795,1743997838059,-1436.23350865,0.00024953,10]
[357297797,1743997838069,-500.0,0.00027397,5]
[357297799,1743997838079,-273.77745554,0.00029502,2]
[357297802,1743997838091,-226.22254446,0.00029502,2]
[357297804,1743997838101,-563.29706691,0.00029786,2]
[357297806,1743997838110,-233.08,0.0002987,3]
[357297808,1743997838120,-300.0,0.00029872,2]
[357297810,1743997838129,-500.0,0.00029873,5]
[357297812,1743997838139,-500.0,0.00029873,5]
[357297814,1743997838149,-500.0,0.00029873,5]
[357297816,1743997838159,-177.40038363,0.00029873,5]
[357297841,1743997838595,-322.59961637,0.00029873,5]
[357297842,1743997838606,-500.0,0.00029873,5]
[357297843,1743997838616,-500.0,0.00029873,5]
[357297844,1743997838626,-500.0,0.00029873,5]
[357297845,1743997838636,-186.66862855,0.00029873,2]
[357297846,1743997838645,-309.60759116,0.00029879,2]